fUST/lending_fUST_20250617
["ID","MTS","AMOUNT","RATE_DAILY","PERIOD"]
[366181708,1750102234777,-177.979999,0.00024,7]
[366181709,1750102234787,-151.0,0.00024,7]
[366181710,1750102234796,-156.219526,0.00024,7]
[366181711,1750102234806,-151.0,0.00024,7]
[366181712,1750102234816,-151.0,0.00024,7]
[366181713,1750102234825,-151.0,0.00024,7]
[366181714,1750102234835,-153.0,0.00024,3]
[366181715,1750102234844,-153.0,0.00024,3]
[366181716,1750102234853,-153.0,0.00024,3]
[366181717,1750102234863,-153.0,0.00024,3]
[366181718,1750102234874,-153.0,0.00024,3]
[366181719,1750102234883,-153.0,0.00024,3]
[366181720,1750102234893,-153.0,0.00024,3]
[366181721,1750102234903,-155.87490227,0.00024,3]
[366181722,1750102234912,-177.0,0.00024,2]
[366181723,1750102234922,-500.0,0.0002405,2]
[366181724,1750102234932,-500.0,0.0002405,2]
[366181725,1750102234942,-151.0,0.00024082,7]
[366181726,1750102234952,-460.0,0.00024109,4]
[366181727,1750102234962,-460.0,0.00024109,4]
[366181728,1750102234973,-460.0,0.00024109,4]
[366181729,1750102234982,-460.0,0.00024109,4]
[366181730,1750102234992,-460.0,0.00024109,4]
[366181731,1750102235002,-460.0,0.00024109,4]
[366181732,1750102235012,-653.0,0.00024115,2]
[366181733,1750102235022,-2160.0,0.00024115,2]
[366181734,1750102235032,-406.0,0.00024115,2]
[366181735,1750102235047,-641.0,0.000242,2]
[366181736,1750102235058,-800.0,0.00024201,2]
[366181737,1750102235068,-156.87090644,0.00024213,3]
[366181738,1750102235079,-317.0,0.00024213,3]
[366181739,1750102235089,-317.0,0.00024213,3]
[366181740,1750102235099,-317.0,0.00024213,3]
[366181741,1750102235109,-317.0,0.00024213,3]
[366181742,1750102235120,-317.0,0.00024213,3]
[366181743,1750102235131,-317.0,0.00024213,3]
[366181744,1750102235141,-317.0,0.00024213,3]
[366181745,1750102235151,-308.9982552,0.00024213,3]
[366181746,1750102235160,-1226.5944653,0.00024222,2]
[366181747,1750102235170,-2200.0,0.00024267,2]
[366181748,1750102235180,-200.0,0.0002427,10]
[366181749,1750102235190,-214.66567055,0.00024279,2]
[366181750,1750102235200,-23800.75317659,0.00024279,2]
[366181751,1750102235210,-207.0,0.0002429,2]
[366181752,1750102235220,-168.0,0.00024303,2]
[366181753,1750102235229,-1000.0,0.00024321,2]
[366181754,1750102235240,-1009.52386993,0.00024321,2]
[366181755,1750102235250,-1000.0,0.00024321,2]
[366181756,1750102235260,-1000.0,0.00024321,2]
[366181757,1750102235269,-1000.0,0.00024321,2]
[366181758,1750102235279,-501.65890684,0.00024321,2]
[366181759,1750102235289,-1200.0,0.00024321,2]
[366181760,1750102235299,-1000.0,0.00024321,2]
[366181761,1750102235309,-151.0,0.00024355,7]
[366181762,1750102235318,-460.0,0.00024383,4]
[366181763,1750102235327,-460.0,0.00024383,4]
[366181764,1750102235337,-460.0,0.00024383,4]
[366181765,1750102235347,-460.0,0.00024383,4]
[366181766,1750102235356,-460.0,0.00024383,4]
[366181767,1750102235366,-460.0,0.00024383,4]
[366181768,1750102235375,-800.0,0.00024392,2]
[366181769,1750102235385,-2000.0,0.000244,10]
[366181770,1750102235395,-215.0738,0.00024404,2]
[366181771,1750102235406,-167.0,0.00024422,2]
[366181772,1750102235415,-17651.05917576,0.00024459,7]
[366181773,1750102235425,-151.0,0.00024459,7]
[366181774,1750102235437,-153.181967,0.00024459,7]
[366181775,1750102235447,-153.181967,0.00024459,7]
[366181776,1750102235457,-3619.071267,0.00024459,2]
[366181777,1750102235467,-3619.071267,0.00024459,2]
[366181778,1750102235477,-151.0,0.00024459,7]
[366181779,1750102235488,-811.52722521,0.00024461,7]
[366181780,1750102235498,-221.0,0.00024485,2]
[366181781,1750102235507,-1000.0,0.00024521,2]
[366181782,1750102235516,-500.0,0.00024521,2]
[366181783,1750102235526,-1013.82596414,0.00024521,2]
[366181784,1750102235535,-152.584539,0.00024521,7]
[366181785,1750102235545,-151.0,0.00024521,7]
[366181786,1750102235554,-151.0,0.00024538,7]
[366181787,1750102235564,-151.0,0.00024538,7]
[366181788,1750102235574,-207.0,0.0002459,2]
[366181789,1750102235584,-188.27130948,0.00024596,2]
[366181790,1750102235593,-4250.87737092,0.00024598,2]
[366181791,1750102235603,-154.9768,0.00024598,7]
[366181792,1750102235612,-151.0,0.00024598,7]
[366181793,1750102235621,-163.420217,0.00024598,7]
[366181794,1750102235630,-151.0,0.00024598,7]
[366181795,1750102235639,-151.0,0.00024598,7]
[366181796,1750102235649,-151.0,0.00024598,7]
[366181797,1750102235658,-151.0,0.00024598,7]
[366181798,1750102235667,-1500.0,0.000246,15]
[366181799,1750102235677,-151.0,0.000246,8]
[366181800,1750102235687,-151.0,0.00024627,7]
[366181801,1750102235696,-427.3021607,0.0002465,2]
[366181802,1750102235705,-499.93733427,0.00024657,60]
[366181803,1750102235714,-473.31753,0.00024657,4]
[366181804,1750102235724,-460.0,0.00024657,4]
[366181805,1750102235734,-460.0,0.00024657,4]
[366181806,1750102235743,-460.0,0.00024657,4]
[366181807,1750102235752,-299.29837309,0.00024657,4]
[366181808,1750102235761,-460.0,0.00024657,4]
[366181809,1750102235770,-1000.0,0.00024658,2]
[366181810,1750102235779,-1000.0,0.00024658,2]
[366181811,1750102235789,-1000.0,0.00024658,2]
[366181812,1750102235798,-1000.0,0.00024658,2]
[366181813,1750102235807,-1000.0,0.00024658,2]
[366181814,1750102235818,-1000.0,0.00024658,2]
[366181815,1750102235827,-1000.0,0.00024658,2]
[366181816,1750102235837,-1000.0,0.00024658,2]
[366181817,1750102235846,-1000.0,0.00024658,2]
[366181818,1750102235856,-380.0,0.00024658,2]
[366181819,1750102235865,-1000.0,0.00024658,2]
[366181820,1750102235874,-1000.0,0.00024658,2]
[366181821,1750102235883,-1000.0,0.00024658,2]
[366181822,1750102235892,-500.0,0.00024658,2]
[366181823,1750102235902,-3001.71241896,0.00024658,2]
[366181824,1750102236034,-703.93,0.00024685,2]
[366181825,1750102236047,-500.0,0.00024685,2]
[366181826,1750102236057,-151.0,0.000247,10]
[366181827,1750102236067,-1000.0,0.000247,5]
[366181828,1750102236078,-1000.0,0.000247,2]
[366181829,1750102236087,-500.0,0.00024713,2]
[366181830,1750102236096,-1000.0,0.00024729,13]
[366181831,1750102236107,-73469.52006915,0.0002473,15]
[366181832,1750102236118,-151.112979,0.0002473,7]
[366181833,1750102236128,-151.0,0.0002473,7]
[366181834,1750102236137,-186.984444,0.0002473,7]
[366181835,1750102236147,-151.0,0.0002473,7]
[366181836,1750102236156,-223.128824,0.0002473,7]
[366181837,1750102236166,-151.0,0.0002473,7]
[366181838,1750102236176,-151.0,0.0002473,7]
[366181839,1750102236185,-151.0,0.0002473,7]
[366181840,1750102236195,-151.0,0.0002473,7]
[366181841,1750102236205,-151.0,0.0002473,7]
[366181842,1750102236214,-153.181967,0.0002473,7]
[366181843,1750102236224,-153.181967,0.0002473,7]
[366181844,1750102236233,-3619.071267,0.0002473,2]
[366181845,1750102236243,-3619.071267,0.0002473,2]
[366181846,1750102236252,-151.0,0.0002473,7]
[366181847,1750102236262,-151.0,0.0002473,7]
[366181848,1750102236271,-151.0,0.0002473,7]
[366181849,1750102236281,-151.0,0.0002473,7]
[366181850,1750102236291,-151.0,0.0002473,7]
[366181851,1750102236300,-277.238445,0.0002473,7]
[366181852,1750102236310,-151.0,0.0002473,7]
[366181853,1750102236319,-151.0,0.0002473,7]
[366181854,1750102236329,-160.557406,0.0002473,7]
[366181855,1750102236339,-500.0,0.0002474,2]
[366181856,1750102236349,-153.0,0.00024742,2]
[366181857,1750102236358,-153.0,0.00024742,2]
[366181858,1750102236367,-153.0,0.00024742,2]
[366181859,1750102236377,-153.0,0.00024742,2]
[366181860,1750102236387,-153.0,0.00024742,2]
[366181861,1750102236399,-153.0,0.00024742,2]
[366181862,1750102236409,-153.0,0.00024744,2]
[366181863,1750102236419,-4362.94,0.00024752,2]
[366181864,1750102236428,-200.0,0.00024757,120]
[366181865,1750102236437,-500.0,0.00024768,2]
[366181866,1750102236447,-500.0,0.00024773,2]
[366181867,1750102236457,-200.0,0.00024778,120]
[366181868,1750102236467,-64029.20603124,0.00024788,2]
[366181869,1750102236476,-1003.49,0.0002479,10]
[366181870,1750102236487,-500.0,0.00024795,2]
[366181871,1750102236496,-2000.0,0.000248,2]
[366181872,1750102236505,-2000.0,0.000248,2]
[366181873,1750102236515,-2000.0,0.000248,2]
[366181874,1750102236524,-14813.610861,0.000248,2]
[366181875,1750102236534,-213.36025772,0.000248,7]
[366181876,1750102236543,-160.0,0.000248,3]
[366181877,1750102236552,-1500.0,0.000248,120]
[366181878,1750102236562,-152.839259,0.000248,7]
[366181879,1750102236571,-151.0,0.000248,7]
[366181880,1750102236580,-152.155345,0.000248,7]
[366181881,1750102236590,-151.0,0.000248,7]
[366181882,1750102236599,-151.0,0.000248,7]
[366181883,1750102236608,-151.0,0.000248,7]
[366181884,1750102236617,-151.0,0.000248,8]
[366181885,1750102236626,-151.0,0.000248,7]
[366181886,1750102236636,-151.0,0.000248,8]
[366181887,1750102236644,-151.0,0.000248,7]
[366181888,1750102236653,-151.0,0.000248,7]
[366181889,1750102236663,-151.0,0.000248,7]
[366181890,1750102236672,-151.0,0.000248,7]
[366181891,1750102236681,-481.62,0.000248,31]
[366181892,1750102236690,-481.62,0.000248,31]
[366181893,1750102236700,-481.62,0.000248,31]
[366181894,1750102236709,-481.62,0.000248,31]
[366181895,1750102236718,-481.62,0.000248,31]
[366181896,1750102236727,-481.62,0.000248,31]
[366181897,1750102236737,-481.62,0.000248,31]
[366181898,1750102236747,-481.62,0.000248,31]
[366181899,1750102236756,-481.62,0.000248,31]
[366181900,1750102236766,-481.62,0.000248,31]
[366181901,1750102236776,-481.62,0.000248,31]
[366181902,1750102236786,-481.62,0.000248,31]
[366181903,1750102236795,-481.62,0.000248,31]
[366181904,1750102236806,-481.62,0.000248,31]
[366181905,1750102236815,-481.62,0.000248,31]
[366181906,1750102236824,-481.62,0.000248,31]
[366181907,1750102236834,-151.0,0.000248,8]
[366181908,1750102236844,-153.181967,0.000248,7]
[366181909,1750102236854,-153.181967,0.000248,7]
[366181910,1750102236864,-3619.071267,0.000248,2]
[366181911,1750102236873,-3619.071267,0.000248,2]
[366181912,1750102236882,-151.0,0.000248,7]
[366181913,1750102236891,-151.0,0.000248,7]
[366181914,1750102236901,-151.0,0.000248,7]
[366181915,1750102236911,-151.0,0.000248,7]
[366181916,1750102236920,-151.0,0.000248,7]
[366181917,1750102236930,-151.0,0.000248,7]
[366181918,1750102236939,-151.0,0.000248,7]
[366181919,1750102236948,-271.67743,0.00024845,7]
[366181920,1750102236958,-151.0,0.00024845,7]
[366181921,1750102236968,-151.0,0.00024848,7]
[366181922,1750102236977,-207.926332,0.00024848,7]
[366181923,1750102236987,-151.0,0.00024848,7]
[366181924,1750102236997,-200.0,0.00024856,120]
[366181925,1750102237007,-13881.74987403,0.00024858,2]
[366181926,1750102237016,-23800.75317659,0.00024858,2]
[366181927,1750102237026,-200.0,0.00024863,120]
[366181928,1750102237038,-1500.0,0.00024868,2]
[366181929,1750102237048,-1000.0,0.00024868,2]
[366181930,1750102237058,-502.07646515,0.00024868,2]
[366181931,1750102237067,-1500.0,0.00024868,2]
[366181932,1750102237079,-1800.0,0.00024868,2]
[366181933,1750102237088,-1500.0,0.00024868,2]
[366181934,1750102237098,-3685.2578,0.0002487,2]
[366181935,1750102237108,-200.0,0.0002487,120]
[366181936,1750102237119,-500.9505598,0.00024876,3]
[366181937,1750102237128,-703.93,0.00024885,3]
[366181938,1750102237138,-151.0,0.0002489,7]
[366181939,1750102237148,-197.0,0.000249,2]
[366181940,1750102237157,-738.32365627,0.000249,3]
[366181941,1750102237166,-160.0,0.000249,3]
[366181942,1750102237175,-160.0,0.000249,3]
[366181943,1750102237185,-307.89132392,0.000249,5]
[366181944,1750102237194,-151.0,0.000249,7]
[366181945,1750102237204,-151.0,0.000249,7]
[366181946,1750102237213,-207.0,0.000249,2]
[366181947,1750102237222,-151.0,0.000249,7]
[366181948,1750102237232,-151.0,0.000249,7]
[366181949,1750102237246,-151.0,0.000249,7]
[366181950,1750102237259,-234.565402,0.000249,7]
[366181951,1750102237274,-151.0,0.000249,7]
[366181952,1750102237288,-151.0,0.000249,15]
[366181953,1750102237302,-153.181967,0.000249,7]
[366181954,1750102237315,-153.181967,0.000249,7]
[366181955,1750102237327,-3619.071267,0.000249,2]
[366181956,1750102237338,-3619.071267,0.000249,2]
[366181957,1750102237351,-247.09088,0.000249,7]
[366181958,1750102237365,-735778.083243,0.000249,2]
[366181959,1750102237377,-151.0,0.000249,7]
[366181960,1750102237390,-3132.88,0.00024929,2]
[366181961,1750102237403,-633.47462731,0.00024931,120]
[366181962,1750102237416,-460.0,0.00024931,4]
[366181963,1750102237429,-460.0,0.00024931,4]
[366181964,1750102237442,-460.0,0.00024931,4]
[366181965,1750102237454,-460.0,0.00024931,4]
[366181966,1750102237468,-200.0,0.00024939,120]
[366181967,1750102237481,-3487.0,0.00024941,60]
[366181968,1750102237496,-500.0,0.00024942,60]
[366181969,1750102237508,-500.0,0.00024942,60]
[366181970,1750102237520,-500.0,0.00024942,3]
[366181971,1750102237531,-500.0,0.00024942,60]
[366181972,1750102237543,-500.0,0.00024942,60]
[366181973,1750102237556,-500.0,0.00024942,60]
[366181974,1750102237568,-500.0,0.00024942,60]
[366181975,1750102237579,-500.0,0.00024942,60]
[366181976,1750102237592,-398.88,0.00024942,60]
[366181977,1750102237605,-415.0,0.00024943,60]
[366181978,1750102237618,-500.0,0.00024943,3]
[366181979,1750102237630,-500.0,0.00024943,3]
[366181980,1750102237643,-500.0,0.00024943,3]
[366181981,1750102237654,-229.90125484,0.00024943,3]
[366181982,1750102237665,-500.0,0.00024944,3]
[366181983,1750102237675,-180.0,0.00024949,3]
[366181984,1750102237686,-3095.41697214,0.0002495,2]
[366181985,1750102237699,-500.0,0.0002495,3]
[366181986,1750102237710,-200.0,0.00024955,120]
[366181987,1750102237722,-259.155116,0.00024958,7]
[366181989,1750102237735,-151.0,0.00024958,7]
[366181990,1750102237747,-185.520046,0.00024958,7]
[366181991,1750102237760,-151.0,0.00024958,7]
[366181992,1750102237773,-151.0,0.00024958,7]
[366181993,1750102237784,-151.0,0.00024958,7]
[366181995,1750102237798,-151.0,0.00024958,7]
[366181997,1750102237810,-151.0,0.00024958,7]
[366181998,1750102237823,-151.0,0.00024958,7]
[366181999,1750102237836,-151.0,0.00024958,7]
[366182000,1750102237850,-151.0,0.00024958,7]
[366182001,1750102237862,-297.380512,0.00024958,7]
[366182002,1750102237875,-153.181967,0.00024958,7]
[366182003,1750102237885,-153.181967,0.00024958,7]
[366182004,1750102237896,-153.181967,0.00024958,7]
[366182007,1750102237907,-153.181967,0.00024958,7]
[366182009,1750102237918,-153.181967,0.00024958,7]
[366182011,1750102237929,-153.181967,0.00024958,7]
[366182013,1750102237940,-153.181967,0.00024958,7]
[366182015,1750102237953,-153.181967,0.00024958,7]
[366182016,1750102237967,-3619.071267,0.00024958,2]
[366182017,1750102237980,-153.181967,0.00024958,7]
[366182018,1750102237993,-3619.071267,0.00024958,2]
[366182019,1750102238005,-153.181967,0.00024958,7]
[366182021,1750102238015,-153.181967,0.00024958,7]
[366182024,1750102238027,-3619.071267,0.00024958,2]
[366182026,1750102238041,-153.181961,0.00024958,7]
[366182028,1750102238053,-3619.071267,0.00024958,2]
[366182030,1750102238066,-3619.071267,0.00024958,2]
[366182033,1750102238079,-3619.071267,0.00024958,2]
[366182035,1750102238090,-3619.071267,0.00024958,2]
[366182037,1750102238100,-3619.071267,0.00024958,2]
[366182039,1750102238112,-3619.071267,0.00024958,2]
[366182041,1750102238123,-3619.071267,0.00024958,2]
[366182043,1750102238134,-3619.071267,0.00024958,2]
[366182045,1750102238146,-3619.071276,0.00024958,2]
[366182047,1750102238157,-151.0,0.00024958,7]
[366182050,1750102238168,-151.0,0.00024958,7]
[366182051,1750102238180,-151.000001,0.00024958,7]
[366182054,1750102238191,-3075851.56844739,0.00024958,20]
[366182057,1750102238299,-160.47140234,0.00020821,2]
[366182058,1750102238310,-615.46550812,0.00020933,2]
[366182059,1750102238321,-317.0,0.00024,3]
[366182060,1750102238332,-173.77,0.00024675,10]
[366182061,1750102238343,-4870.39865047,0.00024958,20]
[366182062,1750102238356,-1560.44246684,0.00024958,20]
[366182063,1750102238369,-927.41922608,0.00024958,20]
[366182064,1750102238383,-824.12074959,0.00024958,20]
[366182404,1750102959328,291.066932,0.00013699,2]
[366182410,1750103165063,150.0,0.000189,2]
[366182412,1750103280481,2400.0,0.00024658,120]
[366182475,1750103432689,-186.35635837,0.00020032,2]
[366182477,1750103432701,-5000.0,0.00020032,2]
[366182478,1750103432712,-400.0,0.00020132,2]
[366182479,1750103432723,-291.066932,0.00020187,2]
[366182480,1750103432735,-607.36,0.00020624,2]
[366182481,1750103432746,-1597.49,0.00020745,2]
[366182482,1750103432756,-186.35635837,0.00020968,2]
[366182483,1750103432767,-12315.98969233,0.00020998,2]
[366182491,1750103438493,-333.2930021,0.00020997,2]
[366182493,1750103438504,-12584.01030767,0.00020998,2]
[366182494,1750103438514,-265.832465,0.00021068,2]
[366182495,1750103438523,-666.0,0.0002111,2]
[366182496,1750103438534,-500.0,0.00021122,2]
[366182498,1750103438543,-191.80719047,0.00021162,2]
[366182500,1750103438553,-184.335499,0.00021395,2]
[366182501,1750103438563,-460.0,0.00021917,2]
[366182502,1750103438573,-460.0,0.00021917,4]
[366182504,1750103438584,-460.0,0.00021917,4]
[366182506,1750103438594,-460.0,0.00021917,4]
[366182507,1750103438604,-460.0,0.00021917,4]
[366182508,1750103438614,-460.0,0.00021917,4]
[366182509,1750103438624,-460.0,0.00021917,4]
[366182510,1750103438634,-460.0,0.00021917,4]
[366182511,1750103438644,-460.0,0.00021917,4]
[366182512,1750103438654,-460.0,0.00021917,4]
[366182513,1750103438664,-460.0,0.00021917,4]
[366182514,1750103438675,-500.0,0.00022068,2]
[366182515,1750103438686,-500.0,0.00022189,2]
[366182516,1750103438696,-209.0317803,0.00022189,2]
[366182517,1750103438717,-440.0,0.0002219,2]
[366182518,1750103438727,-460.0,0.0002219,4]
[366182519,1750103438737,-460.0,0.0002219,4]
[366182520,1750103438747,-460.0,0.0002219,4]
[366182521,1750103438758,-460.0,0.0002219,4]
[366182522,1750103438768,-310.83150042,0.0002219,4]
[366182523,1750103438778,-460.0,0.0002219,4]
[366182524,1750103438788,-288.83,0.0002219,4]
[366182525,1750103438798,-460.0,0.0002219,4]
[366182526,1750103438808,-460.0,0.0002219,4]
[366182527,1750103438818,-460.0,0.0002219,4]
[366182528,1750103438828,-619.02,0.0002219,4]
[366182529,1750103438839,-460.0,0.0002219,4]
[366182530,1750103438851,-460.0,0.0002219,4]
[366182531,1750103438861,-460.0,0.0002219,4]
[366182532,1750103438871,-460.0,0.0002219,4]
[366182533,1750103438880,-211.37,0.00022191,2]
[366182534,1750103438890,-460.0,0.00022191,4]
[366182535,1750103438901,-460.0,0.00022191,4]
[366182536,1750103438911,-460.0,0.00022191,4]
[366182537,1750103438922,-460.0,0.00022191,4]
[366182538,1750103438932,-353.15,0.00022191,4]
[366182539,1750103438941,-460.0,0.00022191,4]
[366182540,1750103438951,-460.0,0.00022191,4]
[366182541,1750103438962,-689.85,0.00022215,2]
[366182542,1750103438973,-689.85,0.00022315,5]
[366182543,1750103438983,-689.85,0.00022415,7]
[366182544,1750103438993,-460.0,0.00022464,4]
[366182545,1750103439003,-460.0,0.00022464,4]
[366182546,1750103439013,-460.0,0.00022464,4]
[366182547,1750103439022,-460.0,0.00022464,4]
[366182548,1750103439033,-460.0,0.00022464,4]
[366182549,1750103439043,-460.0,0.00022464,4]
[366182550,1750103439053,-460.0,0.00022464,4]
[366182551,1750103439063,-619.02,0.00022464,4]
[366182552,1750103439079,-460.0,0.00022464,4]
[366182553,1750103439089,-360.0,0.00022464,4]
[366182554,1750103439098,-460.0,0.00022464,4]
[366182555,1750103439108,-460.0,0.00022465,4]
[366182556,1750103439119,-397.76,0.00022465,4]
[366182557,1750103439129,-460.0,0.00022465,4]
[366182558,1750103439139,-460.0,0.00022465,4]
[366182559,1750103439149,-527.97437383,0.00022465,4]
[366182560,1750103439159,-689.85,0.00022515,7]
[366182561,1750103439169,-274.0,0.00022592,2]
[366182562,1750103439179,-689.85,0.00022615,6]
[366182563,1750103439189,-3194.98,0.00022631,2]
[366182564,1750103439200,-689.85,0.00022715,6]
[366182565,1750103439210,-460.0,0.00022738,4]
[366182566,1750103439220,-460.0,0.00022738,4]
[366182567,1750103439229,-460.0,0.00022738,4]
[366182568,1750103439239,-460.0,0.00022738,4]
[366182569,1750103439249,-363.74,0.00022738,4]
[366182570,1750103439259,-460.0,0.00022738,4]
[366182571,1750103439269,-460.0,0.00022738,4]
[366182572,1750103439279,-619.02,0.00022738,4]
[366182573,1750103439289,-460.0,0.00022738,4]
[366182574,1750103439299,-460.0,0.00022738,4]
[366182575,1750103439309,-460.0,0.00022739,4]
[366182576,1750103439319,-460.0,0.00022739,4]
[366182577,1750103439329,-460.0,0.00022739,4]
[366182578,1750103439339,-500.0,0.00022743,2]
[366182579,1750103439348,-274.0,0.00022755,2]
[366182580,1750103439359,-689.85,0.00022815,3]
[366182581,1750103439369,-620.41082344,0.00022912,2]
[366182582,1750103439379,-689.85,0.00022915,4]
[366182583,1750103439389,-460.0,0.00022937,4]
[366182584,1750103439399,-460.0,0.00022937,4]
[366182585,1750103439410,-521.44,0.00022937,4]
[366182586,1750103439423,-460.0,0.00022937,4]
[366182587,1750103439433,-500.0,0.00022973,2]
[366182588,1750103439443,-209.06,0.0002299,10]
[366182589,1750103439453,-174.22,0.0002299,10]
[366182590,1750103439464,-871.13,0.0002299,10]
[366182591,1750103439476,-73084.56346212,0.00023,3]
[366182592,1750103439486,-500.0,0.00023,2]
[366182593,1750103439496,-460.0,0.00023012,4]
[366182594,1750103439506,-460.0,0.00023012,4]
[366182595,1750103439516,-460.0,0.00023012,4]
[366182596,1750103439526,-460.0,0.00023012,4]
[366182597,1750103439536,-460.0,0.00023012,4]
[366182598,1750103439546,-460.0,0.00023012,4]
[366182599,1750103439556,-619.02,0.00023012,4]
[366182600,1750103439566,-460.0,0.00023012,4]
[366182601,1750103439576,-460.0,0.00023012,4]
[366182602,1750103439585,-460.0,0.00023013,4]
[366182603,1750103439595,-460.0,0.00023013,4]
[366182604,1750103439606,-689.85,0.00023015,7]
[366182605,1750103439615,-151.0,0.00023035,2]
[366182606,1750103439626,-152.20402766,0.00023035,2]
[366182607,1750103439635,-1688.0,0.00023035,2]
[366182608,1750103439646,-500.0,0.00023035,2]
[366182609,1750103439655,-5000.0,0.00023035,2]
[366182610,1750103439665,-500.0,0.00023035,2]
[366182611,1750103439675,-500.0,0.00023035,2]
[366182612,1750103439684,-500.0,0.00023035,2]
[366182613,1750103439695,-500.0,0.00023035,2]
[366182614,1750103439717,-500.0,0.00023035,2]
[366182615,1750103439727,-500.0,0.00023035,2]
[366182616,1750103439736,-500.0,0.00023035,2]
[366182617,1750103439746,-500.0,0.00023035,2]
[366182618,1750103439756,-500.0,0.00023035,2]
[366182619,1750103439766,-500.0,0.00023035,2]
[366182620,1750103439776,-500.0,0.00023035,2]
[366182621,1750103439787,-500.0,0.00023035,2]
[366182622,1750103439797,-500.0,0.00023035,2]
[366182623,1750103439807,-500.0,0.00023035,2]
[366182624,1750103439816,-207.4,0.00023035,2]
[366182625,1750103439826,-500.0,0.00023035,2]
[366182626,1750103439836,-500.0,0.00023035,2]
[366182627,1750103439846,-500.0,0.00023035,2]
[366182628,1750103439855,-500.0,0.00023035,2]
[366182629,1750103439865,-500.0,0.00023035,2]
[366182630,1750103439876,-500.0,0.00023035,2]
[366182631,1750103439885,-500.0,0.00023035,2]
[366182632,1750103439895,-500.0,0.00023035,2]
[366182633,1750103439905,-500.0,0.00023035,2]
[366182634,1750103439914,-365.2762568,0.00023041,2]
[366182635,1750103439924,-1750.45600006,0.0002309,2]
[366182636,1750103439933,-689.85,0.00023115,4]
[366182637,1750103439943,-460.0,0.00023211,4]
[366182638,1750103439953,-460.0,0.00023211,4]
[366182639,1750103439963,-521.44,0.00023211,4]
[366182640,1750103439973,-460.0,0.00023211,4]
[366182641,1750103439983,-689.85,0.00023215,5]
[366182642,1750103439993,-460.0,0.00023286,4]
[366182643,1750103440002,-460.0,0.00023286,4]
[366182644,1750103440012,-460.0,0.00023286,4]
[366182645,1750103440021,-460.0,0.00023286,4]
[366182646,1750103440031,-460.0,0.00023286,4]
[366182647,1750103440040,-619.02,0.00023286,4]
[366182648,1750103440050,-460.0,0.00023286,4]
[366182649,1750103440060,-460.0,0.00023286,4]
[366182650,1750103440069,-460.0,0.00023287,4]
[366182651,1750103440079,-500.0,0.00023288,2]
[366182652,1750103440088,-500.0,0.00023288,2]
[366182653,1750103440098,-500.0,0.00023288,2]
[366182654,1750103440107,-500.0,0.00023288,2]
[366182655,1750103440117,-500.0,0.00023288,2]
[366182656,1750103440127,-517.44459876,0.00023288,2]
[366182657,1750103440137,-500.0,0.00023288,2]